lending/lending_fUSD_20240128
["ID","MTS","AMOUNT","RATE_DAILY","PERIOD"]
[312921319,1706461864416,-1000.0,0.00052602,2]
[312921320,1706461864425,-500.0,0.00052602,31]
[312921321,1706461864435,-500.0,0.00052602,31]
[312921322,1706461864444,-500.0,0.00052602,31]
[312921323,1706461864453,-3622.82,0.00052602,5]
[312921324,1706461864462,-500.0,0.00052602,31]
[312921325,1706461864471,-500.0,0.00052602,31]
[312921326,1706461864484,-500.0,0.00052602,31]
[312921327,1706461864492,-500.0,0.00052602,31]
[312921328,1706461864501,-500.0,0.00052602,31]
[312921329,1706461864510,-500.0,0.00052602,31]
[312921330,1706461864520,-500.0,0.00052602,31]
[312921331,1706461864529,-500.0,0.00052602,31]
[312921332,1706461864538,-500.0,0.00052602,31]
[312921333,1706461864548,-500.0,0.00052602,31]
[312921334,1706461864557,-575.7,0.00052602,31]
[312921335,1706461864566,-500.0,0.00052602,31]
[312921336,1706461864576,-890.64,0.00052602,2]
[312921337,1706461864585,-500.0,0.00052602,31]
[312921338,1706461864594,-500.0,0.00052602,31]
[312921339,1706461864603,-500.0,0.00052602,31]
[312921340,1706461864612,-1331.21,0.00052602,31]
[312921341,1706461864621,-500.0,0.00052602,31]
[312921342,1706461864630,-649.36,0.00052602,31]
[312921343,1706461864640,-500.0,0.00052602,31]
[312921344,1706461864649,-500.0,0.00052602,31]
[312921345,1706461864857,-1008.2,0.00052602,31]
[312921346,1706461864889,-500.0,0.00052602,31]
[312921347,1706461864899,-500.0,0.00052602,31]
[312921348,1706461864908,-500.0,0.00052602,31]
[312921349,1706461864918,-500.0,0.00052602,31]
[312921350,1706461864928,-500.0,0.00052602,31]
[312921351,1706461864937,-500.0,0.00052602,31]
[312921352,1706461864946,-500.0,0.00052602,31]
[312921353,1706461864955,-500.0,0.00052602,31]
[312921354,1706461864964,-500.0,0.00052602,31]
[312921355,1706461864973,-500.0,0.00052602,31]
[312921356,1706461864982,-687.11,0.00052602,31]
[312921357,1706461864991,-500.0,0.00052602,31]
[312921358,1706461865000,-500.0,0.00052602,31]
[312921359,1706461865009,-707.32,0.00052602,31]
[312921360,1706461865018,-500.0,0.00052602,31]
[312921361,1706461865028,-2295.74,0.00052602,31]
[312921362,1706461865038,-709.25,0.00052602,31]
[312921363,1706461865048,-500.0,0.00052602,31]
[312921364,1706461865057,-500.0,0.00052602,31]
[312921365,1706461865066,-500.0,0.00052602,31]
[312921366,1706461865076,-642.2,0.00052602,31]
[312921367,1706461865085,-500.0,0.00052602,31]
[312921368,1706461865094,-500.0,0.00052602,31]
[312921369,1706461865103,-500.0,0.00052602,31]
[312921370,1706461865112,-834.44,0.00052602,31]
[312921371,1706461865121,-500.0,0.00052602,31]
[312921372,1706461865131,-1117.28,0.00052602,31]
[312921373,1706461865140,-500.0,0.00052602,31]
[312921374,1706461865149,-500.0,0.00052602,31]
[312921375,1706461865159,-500.0,0.00052602,31]
[312921376,1706461865168,-500.0,0.00052602,31]
[312921377,1706461865177,-500.0,0.00052602,31]
[312921378,1706461865187,-500.0,0.00052602,31]
[312921379,1706461865196,-500.0,0.00052602,31]
[312921380,1706461865205,-500.0,0.00052602,31]
[312921381,1706461865215,-500.0,0.00052602,31]
[312921382,1706461865225,-500.0,0.00052602,31]
[312921383,1706461865234,-500.0,0.00052602,31]
[312921384,1706461865244,-500.0,0.00052602,31]
[312921385,1706461865253,-500.0,0.00052602,31]
[312921386,1706461865263,-210.97105446,0.00052602,31]
[312921387,1706461865273,-557.23,0.00052602,31]
[312921388,1706461865282,-500.0,0.00052602,31]
[312921389,1706461865292,-500.0,0.00052602,31]
[312921390,1706461865302,-500.0,0.00052602,31]
[312921391,1706461865311,-651.16,0.00052602,31]
[312921392,1706461865320,-806.83,0.00052602,31]
[312921393,1706461865329,-500.0,0.00052602,31]
[312921394,1706461865338,-2058.6,0.00052602,31]
[312921395,1706461865347,-500.0,0.00052602,31]
[312921396,1706461865356,-730.25,0.00052602,31]
[312921397,1706461865365,-500.0,0.00052602,31]
[312921398,1706461865375,-500.0,0.00052602,31]
[312921399,1706461865384,-500.0,0.00052602,31]
[312921400,1706461865393,-667.21,0.00052602,31]
[312921401,1706461865402,-500.0,0.00052602,31]
[312921402,1706461865412,-500.0,0.00052602,31]
[312921403,1706461865421,-500.0,0.00052602,31]
[312921404,1706461865430,-500.0,0.00052602,31]
[312921405,1706461865440,-500.0,0.00052602,31]
[312921406,1706461865449,-500.0,0.00052602,31]
[312921407,1706461865459,-500.0,0.00052602,31]
[312921408,1706461865468,-500.0,0.00052602,31]
[312921409,1706461865478,-500.0,0.00052602,31]
[312921410,1706461865490,-500.0,0.00052602,31]
[312921411,1706461865499,-500.0,0.00052602,31]
[312921412,1706461865509,-500.0,0.00052602,31]
[312921413,1706461865519,-500.0,0.00052602,31]
[312921414,1706461865528,-500.0,0.00052602,31]
[312921415,1706461865537,-500.0,0.00052602,31]
[312921416,1706461865549,-500.0,0.00052602,31]
[312921417,1706461865558,-500.0,0.00052602,31]
[312921418,1706461865568,-500.0,0.00052602,31]
[312921419,1706461865577,-1000.0,0.00052602,31]
[312921420,1706461865586,-500.0,0.00052602,31]
[312921421,1706461865596,-565.54,0.00052602,31]
[312921422,1706461865605,-500.0,0.00052602,31]
[312921423,1706461865614,-500.0,0.00052602,31]
[312921424,1706461865623,-500.0,0.00052602,31]
[312921425,1706461865633,-500.0,0.00052602,31]
[312921426,1706461865642,-500.0,0.00052602,31]
[312921427,1706461865651,-625.13,0.00052602,31]
[312921428,1706461865661,-500.0,0.00052602,31]
[312921429,1706461865670,-500.0,0.00052602,31]
[312921430,1706461865680,-1000.07,0.00052602,31]
[312921431,1706461865689,-500.0,0.00052602,31]
[312921432,1706461865698,-500.0,0.00052602,31]
[312921433,1706461865708,-543.15,0.00052602,31]
[312921434,1706461865718,-5121.69,0.00052602,31]
[312921435,1706461865728,-500.0,0.00052602,31]
[312921436,1706461865738,-500.0,0.00052602,31]
[312921437,1706461865747,-500.0,0.00052602,31]
[312921438,1706461865758,-722.32,0.00052602,31]
[312921439,1706461865768,-500.0,0.00052602,31]
[312921440,1706461865777,-528.28,0.00052602,31]
[312921441,1706461865787,-1171.0,0.00052602,31]
[312921442,1706461865799,-500.0,0.00052602,31]
[312921443,1706461865809,-500.0,0.00052602,31]
[312921444,1706461865819,-500.0,0.00052602,31]
[312921445,1706461865828,-500.0,0.00052602,31]
[312921446,1706461865837,-500.0,0.00052602,31]
[312921447,1706461865847,-252.65291889,0.00052602,31]
[312921448,1706461865856,-500.0,0.00052602,31]
[312921449,1706461865865,-856.58,0.00052602,31]
[312921450,1706461865875,-500.0,0.00052602,31]
[312921451,1706461865885,-500.0,0.00052602,31]
[312921452,1706461865894,-851.16,0.00052602,31]
[312921453,1706461865904,-504.37,0.00052602,31]
[312921454,1706461865914,-500.0,0.00052602,31]
[312921455,1706461865924,-500.0,0.00052602,31]
[312921456,1706461865935,-3631.05,0.00052602,31]
[312921457,1706461865944,-500.0,0.00052602,31]
[312921458,1706461865953,-876.85,0.00052602,31]
[312921459,1706461865962,-780.4,0.00052602,31]
[312921460,1706461865971,-500.0,0.00052602,31]
[312921461,1706461865981,-500.0,0.00052602,31]
[312921462,1706461865991,-500.0,0.00052602,31]
[312921463,1706461865999,-1037.01,0.00052602,31]
[312921464,1706461866009,-500.0,0.00052602,31]
[312921465,1706461866019,-8393.83,0.00052602,31]
[312921466,1706461866029,-500.0,0.00052602,31]
[312921467,1706461866038,-500.0,0.00052602,31]
[312921468,1706461866050,-798.98,0.00052602,31]
[312921469,1706461866060,-500.0,0.00052602,31]
[312921470,1706461866069,-922.9,0.00052602,31]
[312921471,1706461866078,-500.0,0.00052602,31]
[312921472,1706461866088,-524.34,0.00052602,31]
[312921473,1706461866097,-500.0,0.00052602,31]
[312921474,1706461866106,-1822.32,0.00052602,31]
[312921475,1706461866116,-500.0,0.00052602,31]
[312921476,1706461866125,-500.0,0.00052602,31]
[312921477,1706461866135,-500.0,0.00052602,31]
[312921478,1706461866145,-500.0,0.00052602,31]
[312921479,1706461866154,-500.0,0.00052602,31]
[312921480,1706461866164,-500.0,0.00052602,31]
[312921481,1706461866174,-500.0,0.00052602,31]
[312921482,1706461866183,-500.0,0.00052602,2]
[312921483,1706461866192,-604.09,0.00052602,31]
[312921484,1706461866201,-500.0,0.00052602,31]
[312921485,1706461866210,-500.0,0.00052602,31]
[312921486,1706461866220,-511.29,0.00052602,31]
[312921487,1706461866229,-500.0,0.00052602,31]
[312921488,1706461866238,-500.0,0.00052602,31]
[312921489,1706461866248,-500.0,0.00052602,31]
[312921490,1706461866258,-158.85567205,0.00052602,2]
[312921491,1706461866268,-500.0,0.00052602,31]
[312921492,1706461866278,-500.0,0.00052602,31]
[312921493,1706461866287,-500.0,0.00052602,7]
[312921494,1706461866301,-500.0,0.00052602,31]
[312921495,1706461866310,-500.0,0.00052602,31]
[312921496,1706461866320,-500.0,0.00052602,31]
[312921497,1706461866329,-500.0,0.00052602,2]
[312921498,1706461866339,-3178.15,0.00052602,5]
[312921499,1706461866348,-296.18,0.00052602,31]
[312921500,1706461866357,-229.34,0.00052602,31]
[312921501,1706461866367,-500.0,0.00052602,31]
[312921502,1706461866376,-2847.83,0.00052602,31]
[312921503,1706461866385,-500.0,0.00052602,31]
[312921504,1706461866395,-500.0,0.00052602,31]
[312921505,1706461866404,-500.0,0.00052602,31]
[312921506,1706461866414,-500.0,0.00052602,2]
[312921507,1706461866423,-500.0,0.00052602,31]
[312921508,1706461866433,-500.0,0.00052602,31]
[312921509,1706461866442,-402.77,0.00052603,30]
[312921510,1706461866451,-943.74,0.00052603,30]
[312921511,1706461866460,-402.77,0.00052603,30]
[312921512,1706461866469,-943.74,0.00052603,30]
[312921513,1706461866483,-809.9,0.00052603,30]
[312921514,1706461866492,-965.6,0.00052603,30]
[312921515,1706461866501,-500.0,0.00052603,90]
[312921516,1706461866511,-500.0,0.00052603,30]
[312921517,1706461866521,-300.0,0.00052603,7]
[312921518,1706461866531,-150.0,0.00052612,7]
[312921519,1706461866541,-308.80025419,0.00052615,7]
[312921520,1706461866551,-150.0,0.00052618,7]
[312921521,1706461866561,-150.0,0.00052627,7]
[312921522,1706461866571,-150.0,0.00052634,7]
[312921523,1706461866581,-150.0,0.00052639,7]
[312921524,1706461866591,-150.0,0.00052639,7]
[312921525,1706461866600,-150.0,0.00052641,7]
[312921526,1706461866609,-300.0,0.0005265,7]
[312921527,1706461866619,-150.0,0.0005265,7]
[312921528,1706461866628,-150.0,0.0005265,7]
[312921529,1706461866637,-150.0,0.00052653,7]
[312921530,1706461866647,-150.0,0.00052654,7]
[312921531,1706461866657,-150.0,0.00052656,7]
[312921532,1706461866666,-150.0,0.00052658,7]
[312921533,1706461866677,-150.0,0.0005266,7]
[312921534,1706461866686,-150.0,0.00052662,7]
[312921535,1706461866695,-150.0,0.00052664,7]
[312921536,1706461866705,-150.0,0.00052671,7]
[312921537,1706461866715,-150.0,0.00052673,7]
[312921538,1706461866724,-150.0,0.00052681,7]
[312921539,1706461866734,-150.0,0.00052682,7]
[312921540,1706461866744,-150.0,0.00052682,7]
[312921541,1706461866754,-3891.12,0.00052683,30]
[312921542,1706461866763,-3891.12,0.00052683,30]
[312921543,1706461866773,-600.0,0.00052684,75]
[312921544,1706461866782,-150.0,0.00052689,7]
[312921545,1706461866792,-150.0,0.00052691,7]
[312921546,1706461866802,-567.45,0.000527,30]
[312921547,1706461866812,-150.0,0.000527,7]
[312921548,1706461866822,-150.0,0.00052709,7]
[312921549,1706461866832,-150.0,0.00052714,7]
[312921550,1706461866841,-300.0,0.00052715,7]
[312921551,1706461866850,-150.0,0.00052715,7]
[312921552,1706461866860,-150.0,0.0005272,7]
[312921553,1706461866869,-300.0,0.00052739,120]
[312921554,1706461866878,-150.0,0.00052743,7]
[312921555,1706461866888,-150.0,0.00052744,7]
[312921556,1706461866897,-150.0,0.00052746,7]
[312921557,1706461866906,-150.0,0.00052748,7]
[312921558,1706461866916,-150.0,0.00052756,7]
[312921559,1706461866925,-150.0,0.00052764,7]
[312921560,1706461866934,-150.0,0.00052765,7]
[312921561,1706461866944,-150.0,0.00052781,7]
[312921562,1706461866953,-150.0,0.00052783,7]
[312921563,1706461866963,-150.0,0.00052785,7]
[312921564,1706461866972,-150.0,0.00052786,7]
[312921565,1706461866981,-150.0,0.00052789,7]
[312921566,1706461866990,-150.0,0.0005279,7]
[312921567,1706461866999,-1779.0,0.0005279,2]
[312921568,1706461867009,-1489.0,0.0005279,2]
[312921569,1706461867018,-150.0,0.00052792,7]
[312921570,1706461867027,-155.46597402,0.00052796,60]
[312921571,1706461867036,-150.34028937,0.00052797,60]
[312921572,1706461867046,-158.1087677,0.00052798,60]
[312921573,1706461867056,-9984.6766069,0.00052799,120]
[312921574,1706461867065,-93799.49288805,0.000528,120]
[312921575,1706461867075,-300.0,0.000528,22]
[312921576,1706461867084,-150.0,0.00052803,7]
[312921577,1706461867094,-155.9745539,0.00052803,60]
[312921578,1706461867103,-155.9745539,0.00052807,60]
[312921579,1706461867112,-1500.0,0.0005281,7]
[312921580,1706461867121,-157.72167214,0.0005281,60]
[312921581,1706461867131,-155.46597402,0.0005282,60]
[312921582,1706461867141,-300.0,0.00052822,7]
[312921583,1706461867150,-300.0,0.00052841,7]
[312921584,1706461867160,-1248.3644934,0.00052842,60]
[312921585,1706461867169,-150.0,0.00052844,7]
[312921586,1706461867178,-150.0,0.00052847,7]
[312921587,1706461867188,-287.87291238,0.00052848,60]
[312921588,1706461867197,-185.38921834,0.00052851,7]
[312921589,1706461867207,-300.0,0.00052851,7]
[312921590,1706461867217,-155.9745539,0.00052851,60]
[312921591,1706461867226,-150.0,0.00052852,7]
[312921592,1706461867236,-150.50894753,0.00052854,60]
[312921593,1706461867245,-360.32885597,0.00052854,60]
[312921594,1706461867254,-300.0,0.00052857,7]
[312921595,1706461867263,-80846.9251448,0.00052864,2]
[312921596,1706461867273,-2974.3817747,0.00052864,2]
[312921597,1706461867282,-317.7090076,0.00052864,2]
[312921598,1706461867291,-150.0,0.00052864,7]
[312921599,1706461867301,-150.0,0.00052867,7]
[312921600,1706461867310,-150.0,0.00052869,7]
[312921601,1706461867318,-1248.3644934,0.00052874,60]
[312921602,1706461867328,-408.74614761,0.00052875,120]
[312921603,1706461867337,-500.0,0.00052876,31]
[312921604,1706461867346,-500.0,0.00052876,31]
[312921605,1706461867355,-500.0,0.00052876,30]
[312921606,1706461867365,-500.0,0.00052876,31]
[312921607,1706461867374,-500.0,0.00052876,31]
[312921608,1706461867382,-500.0,0.00052876,31]
[312921609,1706461867391,-500.0,0.00052876,31]
[312921610,1706461867400,-500.0,0.00052876,31]
[312921611,1706461867409,-500.0,0.00052876,31]
[312921612,1706461867419,-500.0,0.00052876,31]
[312921613,1706461867427,-500.0,0.00052876,31]
[312921614,1706461867436,-500.0,0.00052876,31]
[312921615,1706461867445,-500.0,0.00052876,31]
[312921616,1706461867454,-500.0,0.00052876,31]
[312921617,1706461867463,-1173.31,0.00052876,7]
[312921618,1706461867472,-500.0,0.00052876,31]
[312921619,1706461867481,-500.0,0.00052876,31]
[312921620,1706461867492,-500.0,0.00052876,31]
[312921621,1706461867501,-500.0,0.00052876,31]
[312921622,1706461867511,-500.0,0.00052876,31]
[312921623,1706461867520,-500.0,0.00052876,31]
[312921624,1706461867530,-500.0,0.00052876,31]
[312921625,1706461867538,-500.0,0.00052876,31]
[312921626,1706461867548,-500.0,0.00052876,31]
[312921627,1706461867558,-500.0,0.00052876,31]
[312921628,1706461867568,-500.0,0.00052876,31]
[312921629,1706461867577,-500.0,0.00052876,31]
[312921630,1706461867586,-500.0,0.00052876,31]
[312921631,1706461867595,-500.0,0.00052876,31]
[312921632,1706461867604,-500.0,0.00052876,31]
[312921633,1706461867613,-500.0,0.00052876,31]
[312921634,1706461867622,-500.0,0.00052876,31]
[312921635,1706461867631,-563.76,0.00052876,31]
[312921636,1706461867640,-799.38,0.00052876,31]
[312921637,1706461867649,-500.0,0.00052876,31]
[312921638,1706461867658,-500.0,0.00052876,31]
[312921639,1706461867667,-500.0,0.00052876,31]
[312921640,1706461867676,-500.0,0.00052876,31]
[312921641,1706461867685,-500.0,0.00052876,31]
[312921642,1706461867694,-500.0,0.00052876,31]
[312921643,1706461867703,-500.0,0.00052876,31]
[312921644,1706461867712,-500.0,0.00052876,31]
[312921645,1706461867721,-500.0,0.00052876,31]
[312921646,1706461867731,-500.0,0.00052876,31]
[312921647,1706461867740,-500.0,0.00052876,2]
[312921648,1706461867749,-500.0,0.00052876,31]
[312921649,1706461867758,-500.0,0.00052876,31]
[312921650,1706461867767,-500.0,0.00052876,31]
[312921651,1706461867776,-500.0,0.00052876,31]
[312921652,1706461867785,-1046.7,0.00052876,31]
[312921653,1706461867795,-500.0,0.00052876,31]
[312921654,1706461867804,-500.0,0.00052876,31]
[312921655,1706461867813,-928.12,0.00052876,2]
[312921656,1706461867822,-500.0,0.00052876,31]
[312921657,1706461867831,-500.0,0.00052876,31]
[312921658,1706461867840,-500.0,0.00052876,31]
[312921659,1706461867849,-524.66,0.00052876,31]
[312921660,1706461867858,-500.0,0.00052876,31]
[312921661,1706461867867,-500.0,0.00052876,31]
[312921662,1706461867876,-500.0,0.00052876,31]
[312921663,1706461867885,-500.0,0.00052876,31]
[312921664,1706461867895,-500.0,0.00052876,31]
[312921665,1706461867903,-500.0,0.00052876,31]
[312921666,1706461867913,-500.0,0.00052876,31]
[312921667,1706461867922,-500.0,0.00052876,31]
[312921668,1706461867931,-500.0,0.00052876,31]
[312921669,1706461867940,-500.0,0.00052876,31]
[312921670,1706461867949,-1000.0,0.00052876,31]
[312921671,1706461867958,-500.0,0.00052876,31]
[312921672,1706461867967,-500.0,0.00052876,31]
[312921673,1706461867976,-500.0,0.00052876,31]
[312921674,1706461867986,-500.0,0.00052876,31]
[312921675,1706461867995,-500.0,0.00052876,31]
[312921676,1706461868004,-1078.79,0.00052876,7]
[312921677,1706461868013,-500.0,0.00052876,31]
[312921678,1706461868022,-500.0,0.00052876,31]
[312921679,1706461868031,-500.0,0.00052876,31]
[312921680,1706461868191,-500.0,0.00052876,31]
[312921681,1706461868201,-500.0,0.00052876,14]
[312921682,1706461868211,-500.0,0.00052876,31]
[312921683,1706461868220,-500.0,0.00052876,31]
[312921684,1706461868229,-500.0,0.00052876,31]
[312921685,1706461868238,-500.0,0.00052876,31]
[312921686,1706461868247,-500.0,0.00052876,31]
[312921687,1706461868256,-500.0,0.00052876,31]
[312921688,1706461868265,-500.0,0.00052876,31]
[312921689,1706461868274,-500.0,0.00052876,31]
[312921690,1706461868283,-1006.81,0.00052876,2]
[312921691,1706461868293,-500.0,0.00052876,31]
[312921692,1706461868302,-500.0,0.00052876,31]
[312921693,1706461868311,-500.0,0.00052876,31]
[312921694,1706461868320,-500.0,0.00052876,31]
[312921695,1706461868329,-500.0,0.00052876,31]
[312921696,1706461868338,-625.02,0.00052876,31]
[312921697,1706461868347,-500.0,0.00052876,31]
[312921698,1706461868356,-500.0,0.00052876,31]
[312921699,1706461868365,-500.0,0.00052876,31]
[312921700,1706461868374,-500.0,0.00052876,31]
[312921701,1706461868383,-500.0,0.00052876,31]
[312921702,1706461868392,-1325.01,0.00052876,31]
[312921703,1706461868401,-500.0,0.00052876,31]
[312921704,1706461868410,-537.17,0.00052876,31]
[312921705,1706461868420,-753.5,0.00052876,31]
[312921706,1706461868429,-500.0,0.00052876,31]
[312921707,1706461868438,-998.26,0.00052876,2]
[312921708,1706461868447,-248.59047846,0.00052876,31]
[312921709,1706461868457,-500.0,0.00052876,31]
[312921710,1706461868466,-500.0,0.00052876,20]
[312921711,1706461868475,-500.0,0.00052876,31]
[312921712,1706461868485,-500.0,0.00052876,31]
[312921713,1706461868494,-500.0,0.00052876,31]
[312921714,1706461868503,-1182.48,0.00052876,31]
[312921715,1706461868513,-500.0,0.00052876,31]
[312921716,1706461868524,-500.0,0.00052876,31]
[312921717,1706461868533,-500.0,0.00052876,31]
[312921718,1706461868543,-500.0,0.00052876,31]
[312921719,1706461868552,-500.0,0.00052876,31]
[312921720,1706461868563,-500.0,0.00052876,31]
[312921721,1706461868573,-1000.0,0.00052876,7]
[312921722,1706461868582,-996.46,0.00052876,31]
[312921723,1706461868591,-500.0,0.00052876,31]
[312921724,1706461868600,-500.0,0.00052876,31]
[312921725,1706461868610,-500.0,0.00052876,31]
[312921726,1706461868619,-500.0,0.00052876,2]
[312921727,1706461868629,-500.0,0.00052876,31]
[312921728,1706461868638,-500.0,0.00052876,31]
[312921729,1706461868648,-213.49852552,0.00052876,31]
[312921730,1706461868657,-500.0,0.00052876,31]
[312921731,1706461868666,-500.0,0.00052876,15]
[312921732,1706461868675,-500.0,0.00052876,31]
[312921733,1706461868684,-500.0,0.00052876,31]
[312921734,1706461868694,-500.0,0.00052876,31]
[312921735,1706461868703,-500.0,0.00052876,31]
[312921736,1706461868713,-500.0,0.00052876,31]
[312921737,1706461868722,-994.13,0.00052876,2]
[312921738,1706461868731,-1132.61,0.00052876,31]
[312921739,1706461868740,-500.0,0.00052876,31]
[312921740,1706461868749,-500.0,0.00052876,31]
[312921741,1706461868758,-500.0,0.00052876,31]
[312921742,1706461868767,-500.0,0.00052876,31]
[312921743,1706461868777,-500.0,0.00052876,31]
[312921744,1706461868786,-855.69,0.00052876,31]
[312921745,1706461868796,-500.0,0.00052876,31]
[312921746,1706461868805,-152.60860125,0.00052876,31]
[312921747,1706461868814,-500.0,0.00052876,31]
[312921748,1706461868823,-500.0,0.00052876,31]
[312921749,1706461868833,-500.0,0.00052876,31]
[312921750,1706461868842,-574.75,0.00052876,31]
[312921751,1706461868852,-500.0,0.00052876,31]
[312921752,1706461868861,-500.0,0.00052876,31]
[312921753,1706461868871,-1000.0,0.00052876,7]
[312921754,1706461868880,-500.0,0.00052876,31]
[312921755,1706461868889,-500.0,0.00052876,31]
[312921756,1706461868898,-500.0,0.00052876,31]
[312921757,1706461868908,-500.0,0.00052876,31]
[312921758,1706461868917,-500.0,0.00052876,31]
[312921759,1706461868926,-500.0,0.00052876,31]
[312921760,1706461868935,-500.0,0.00052876,31]
[312921761,1706461868944,-500.0,0.00052876,31]
[312921762,1706461868953,-500.0,0.00052876,31]
[312921763,1706461868962,-500.0,0.00052876,31]
[312921764,1706461868971,-500.0,0.00052876,31]
[312921765,1706461868981,-500.0,0.00052876,31]
[312921766,1706461868990,-586.82,0.00052876,31]
[312921767,1706461869000,-500.0,0.00052876,31]
[312921768,1706461869009,-500.0,0.00052876,31]
[312921769,1706461869019,-683.8,0.00052876,31]
[312921770,1706461869028,-500.0,0.00052876,31]
[312921771,1706461869037,-1566.51,0.00052876,2]
[312921772,1706461869046,-500.0,0.00052876,31]
[312921773,1706461869056,-500.0,0.00052876,31]
[312921774,1706461869065,-565.72,0.00052876,31]
[312921775,1706461869074,-500.0,0.00052876,31]
[312921776,1706461869083,-500.0,0.00052876,31]
[312921777,1706461869092,-500.0,0.00052876,31]
[312921778,1706461869103,-1000.0,0.00052876,2]
[312921779,1706461869112,-500.0,0.00052876,31]
[312921780,1706461869121,-500.0,0.00052876,31]
[312921781,1706461869130,-500.0,0.00052876,31]
[312921782,1706461869140,-3622.82,0.00052876,5]
[312921783,1706461869149,-500.0,0.00052876,31]
[312921784,1706461869158,-500.0,0.00052876,31]
[312921785,1706461869167,-500.0,0.00052876,31]
[312921786,1706461869176,-500.0,0.00052876,31]
[312921787,1706461869185,-500.0,0.00052876,31]
[312921788,1706461869194,-500.0,0.00052876,31]
[312921789,1706461869203,-500.0,0.00052876,31]
[312921790,1706461869213,-500.0,0.00052876,31]
[312921791,1706461869222,-500.0,0.00052876,31]
[312921792,1706461869231,-500.0,0.00052876,31]
[312921793,1706461869240,-575.7,0.00052876,31]
[312921794,1706461869249,-500.0,0.00052876,31]
[312921795,1706461869258,-890.64,0.00052876,2]
[312921796,1706461869267,-500.0,0.00052876,31]
[312921797,1706461869276,-500.0,0.00052876,31]
[312921798,1706461869285,-500.0,0.00052876,31]
[312921799,1706461869296,-1331.21,0.00052876,31]
[312921800,1706461869305,-500.0,0.00052876,31]
[312921801,1706461869314,-649.36,0.00052876,31]
[312921802,1706461869323,-500.0,0.00052876,31]
[312921803,1706461869332,-500.0,0.00052876,31]
[312921804,1706461869341,-1008.2,0.00052876,31]
[312921805,1706461869350,-500.0,0.00052876,31]
[312921806,1706461869359,-500.0,0.00052876,31]
[312921807,1706461869368,-500.0,0.00052876,31]
[312921808,1706461869377,-500.0,0.00052876,31]
[312921809,1706461869386,-500.0,0.00052876,31]
[312921810,1706461869395,-500.0,0.00052876,31]
[312921811,1706461869404,-500.0,0.00052876,31]
[312921812,1706461869414,-500.0,0.00052876,31]
[312921813,1706461869422,-500.0,0.00052876,31]
[312921814,1706461869432,-500.0,0.00052876,31]
[312921815,1706461869441,-687.11,0.00052876,31]
[312921816,1706461869450,-500.0,0.00052876,31]
[312921817,1706461869459,-500.0,0.00052876,31]
[312921818,1706461869468,-707.32,0.00052876,31]